[Event "FIDE Womens Grand Prix 2019-20"]
[Site "Skolkovo"]
[Date "2019.09.11"]
[Round "1.1"]
[White "Cramling, Pia"]
[Black "Ju, Wenjun"]
[Result "0-1"]
[ECO "A45"]
[WhiteElo "2487"]
[BlackElo "2576"]
[Annotator "ChessBase"]
[PlyCount "128"]
[EventDate "2019.09.11"]
[EventType "tourn"]
[EventCountry "RUS"]
[SourceTitle "playchess.com"]
[Source "ChessBase"]
[SourceQuality "1"]
[TimeControl "40/5400+30:1800+30"]

1. d4 {[%emt 0:00:00]} Nf6 {[%emt 0:00:00]} 2. Bg5 {[%emt 0:00:00]} d5 {[%emt 0:00:00]} 3. Bxf6 {[%emt 0:00:14]} gxf6 {[%emt 0:00:19]} 4. e3 {[%emt 0:01:18]} c5 {[%emt 0:01:39]} 5. dxc5 {[%emt 0:00:38]} e6 {[%emt 0:06:17]} 6. c4 {[%emt 0:00:22]} dxc4 {[%emt 0:00:38]} 7. Qxd8+ {[%emt 0:01:27]} Kxd8 {[%emt 0:00:03]} 8. Bxc4 {[%emt 0:00:08]} Bxc5 {[%emt 0:00:26]} 9. Nd2 {[%emt 0:01:21]} Ke7 {[%emt 0:00:57]} 10. Ngf3 {[%emt 0:00:42]} Bd7 {[%emt 0:06:48]} 11. O-O {[%emt 0:08:23]} Nc6 {[%emt 0:00:16]} 12. Rfc1 {[%emt 0:03:26]} Bb6 {[%emt 0:01:42]} 13. Be2 {[%emt 0:01:18]} Rac8 {[%emt 0:00:57]} 14. Kf1 {[%emt 0:04:15]} a6 {[%emt 0:05:09]} 15. a3 {[%emt 0:11:57]} Rc7 {[%emt 0:10:09]} 16. Rc3 {[%emt 0:17:17]} Rhc8 {[%emt 0:05:57]} 17. Rac1 {[%emt 0:04:21]} Na5 {[%emt 0:01:03]} 18. Rxc7 {[%emt 0:02:04]} Rxc7 {[%emt 0:00:25]} 19. Rxc7 {[%emt 0:00:29]} Bxc7 {[%emt 0:00:03]} 20. Nd4 {[%emt 0:04:12]} e5 {[%emt 0:01:50]} 21. Nc2 {[%emt 0:05:14]} f5 {[%emt 0:01:17]} 22. Nb4 {[%emt 0:01:11]} Be6 {[%emt 0:02:02]} 23. e4 {[%emt 0:02:12]} fxe4 {[%emt 0:04:25]} 24. Nxe4 {[%emt 0:00:16]} f5 {[%emt 0:00:39]} 25. Nc5 {[%emt 0:04:05]} Bf7 {[%emt 0:05:45]} 26. g4 {[%emt 0:01:38]} Bd6 {[%emt 0:01:11]} 27. Na4 {[%emt 0:00:29]} fxg4 {[%emt 0:02:36]} 28. Bxg4 {[%emt 0:11:15]} b5 {[%emt 0:01:04]} 29. Nc3 {[%emt 0:03:02]} Bxb4 {[%emt 0:00:13]} 30. axb4 {[%emt 0:00:04]} Nc6 {[%emt 0:00:15]} 31. Ke2 {[%emt 0:01:01]} Nxb4 {[%emt 0:00:06]} 32. Bc8 {[%emt 0:00:35]} Bg6 {[%emt 0:04:10]} 33. Bb7 {[%emt 0:01:30]} Kd6 {[%emt 0:00:18]} 34. Ke3 {[%emt 0:01:36]} Kc5 {[%emt 0:01:39]} 35. Bc8 {[%emt 0:01:01]} a5 {[%emt 0:02:48]} 36. Bd7 {[%emt 0:00:35]} Nc2+ {[%emt 0:08:47]} 37. Kd2 {[%emt 0:00:09]} Nd4 {[%emt 0:00:05]} 38. Ke3 {[%emt 0:00:21]} Kc4 {[%emt 0:01:14]} 39. Kd2 {[%emt 0:06:12]} b4 {[%emt 0:07:31]} 40. Na4 {[%emt 0:00:00]} Kb3 {[%emt 0:00:00]} 41. Kc1 {[%emt 0:05:25]} Ne2+ {[%emt 0:05:21]} 42. Kd2 {[%emt 0:00:25]} Nf4 {[%emt 0:00:04]} 43. Bb5 {[%emt 0:00:21]} e4 {[%emt 0:11:02]} 44. Nc5+ {[%emt 0:12:36]} Kxb2 {[%emt 0:05:11]} 45. Nb7 {[%emt 0:00:09]} Ne6 {[%emt 0:05:22]} 46. Nxa5 {[%emt 0:05:25]} Nd4 {[%emt 0:00:02]} 47. Bc4 {[%emt 0:01:06]} Nf3+ {[%emt 0:01:26]} 48. Ke3 {[%emt 0:00:12]} Nxh2 {[%emt 0:00:13]} 49. Kf4 {[%emt 0:00:20]} Nf3 {[%emt 0:02:18]} 50. Nb3 {[%emt 0:07:33]} Kc3 {[%emt 0:00:42]} 51. Bg8 {[%emt 0:01:21]} Nd2 {[%emt 0:01:52]} 52. Nc5 {[%emt 0:00:09]} Kd4 {[%emt 0:04:49]} 53. Ne6+ {[%emt 0:02:18]} Kd3 {[%emt 0:00:02]} 54. Kg3 {[%emt 0:00:53]} b3 {[%emt 0:06:31]} 55. Nc5+ {[%emt 0:00:53]} Kc2 {[%emt 0:00:05]} 56. Nxb3 {[%emt 0:00:34]} Nxb3 {[%emt 0:00:03]} 57. Kf4 {[%emt 0:00:09]} Nd2 {[%emt 0:01:06]} 58. Ke3 {[%emt 0:00:41]} Kc3 {[%emt 0:00:14]} 59. Be6 {[%emt 0:00:16]} Nc4+ {[%emt 0:03:22]} 60. Kf4 {[%emt 0:01:07]} Kd4 {[%emt 0:00:25]} 61. Bc8 {[%emt 0:00:42]} Ne5 {[%emt 0:00:15]} 62. Bb7 {[%emt 0:00:36]} Nd3+ {[%emt 0:00:04]} 63. Kg3 {[%emt 0:00:04]} Kc3 {[%emt 0:00:36]} 64. Ba6 {[%emt 0:00:43]} Kd2 {[%emt 0:00:05]} 0-1

[Event "FIDE Womens Grand Prix 2019-20"]
[Site "Skolkovo"]
[Date "2019.09.11"]
[Round "1.2"]
[White "Stefanova, Antoaneta"]
[Black "Goryachkina, Aleksandra"]
[Result "0-1"]
[ECO "D23"]
[WhiteElo "2491"]
[BlackElo "2564"]
[Annotator "ChessBase"]
[PlyCount "108"]
[EventDate "2019.09.11"]
[EventType "tourn"]
[EventCountry "RUS"]
[SourceTitle "playchess.com"]
[Source "ChessBase"]
[SourceQuality "1"]
[TimeControl "40/5400+30:1800+30"]

1. d4 {[%emt 0:00:00]} d5 {[%emt 0:00:00]} 2. c4 {[%emt 0:00:00]} dxc4 {[%emt 0:00:19]} 3. Nf3 {[%emt 0:01:53]} Nf6 {[%emt 0:00:34]} 4. Na3 {[%emt 0:03:39]} e5 {[%emt 0:03:10]} 5. e3 {[%emt 0:48:07]} exd4 {[%emt 0:10:59]} 6. Nxd4 {[%emt 0:00:27]} c5 {[%emt 0:06:44]} 7. Ne2 {[%emt 0:11:06]} Qxd1+ {[%emt 0:04:38]} 8. Kxd1 {[%emt 0:00:01]} Nc6 {[%emt 0:06:34]} 9. Nc3 {[%emt 0:02:01]} a6 {[%emt 0:07:37]} 10. Nxc4 {[%emt 0:02:46]} b5 {[%emt 0:02:45]} 11. Nb6 {[%emt 0:02:10]} Bg4+ {[%emt 0:01:53]} 12. f3 Rb8 {[%emt 0:06:08]} 13. a4 {[%emt 0:15:42]} Rxb6 {[%emt 0:12:26]} 14. axb5 {[%emt 0:00:12]} axb5 15. Ra8+ Kd7 {[%emt 0:01:58]} 16. fxg4 {[%emt 0:04:47]} Nxg4 {[%emt 0:03:30]} 17. Kc2 {[%emt 0:00:45]} Nf2 {[%emt 0:09:44]} 18. Rg1 {[%emt 0:00:13]} Nb4+ {[%emt 0:01:02]} 19. Kb1 {[%emt 0:00:41]} Nfd3 {[%emt 0:03:18]} 20. g3 {[%emt 0:01:54]} g6 {[%emt 0:02:39]} 21. Bh3+ {[%emt 0:00:50]} Kc7 {[%emt 0:01:08]} 22. Rf1 {[%emt 0:00:54]} f6 {[%emt 0:03:16]} 23. Bg2 {[%emt 0:01:30]} c4 {[%emt 0:02:35]} 24. Bd2 {[%emt 0:00:41]} Rb8 {[%emt 0:03:45]} 25. Rxb8 {[%emt 0:00:39]} Kxb8 {[%emt 0:00:02]} 26. Rxf6 {[%emt 0:00:15]} Bc5 {[%emt 0:00:36]} 27. Nxb5 {[%emt 0:00:48]} Rd8 {[%emt 0:00:10]} 28. Rf7 {[%emt 0:00:53]} Ne1 {[%emt 0:03:52]} 29. Rb7+ {[%emt 0:00:51]} Kc8 {[%emt 0:00:01]} 30. Rc7+ {[%emt 0:00:29]} Kb8 {[%emt 0:00:00]} 31. Bxb4 {[%emt 0:00:36]} Rd1+ {[%emt 0:00:09]} 32. Ka2 {[%emt 0:00:01]} Nc2 {[%emt 0:01:35]} 33. b3 {[%emt 0:00:56]} Nxb4+ {[%emt 0:00:28]} 34. Kb2 {[%emt 0:00:08]} Rd2+ {[%emt 0:00:44]} 35. Kb1 {[%emt 0:00:27]} Rxg2 {[%emt 0:02:07]} 36. bxc4 {[%emt 0:00:21]} Nd3 {[%emt 0:00:31]} 37. Rxh7 {[%emt 0:00:23]} Bxe3 {[%emt 0:00:43]} 38. Rd7 {[%emt 0:01:13]} Nc5 {[%emt 0:00:40]} 39. Re7 {[%emt 0:00:13]} Bg1 {[%emt 0:00:33]} 40. Na7 {[%emt 0:00:00]} Nd3 {[%emt 0:00:00]} 41. Nc6+ {[%emt 0:01:11]} Kc8 {[%emt 0:02:59]} 42. Rg7 {[%emt 0:03:23]} Rb2+ {[%emt 0:02:27]} 43. Ka1 {[%emt 0:04:38]} Rb6 {[%emt 0:01:59]} 44. Na7+ {[%emt 0:13:30]} Kd8 {[%emt 0:01:22]} 45. Nb5 {[%emt 0:03:27]} Bxh2 {[%emt 0:04:18]} 46. Ka2 {[%emt 0:00:30]} Bxg3 {[%emt 0:01:54]} 47. Kb3 {[%emt 0:00:01]} Be5 {[%emt 0:02:33]} 48. Rh7 {[%emt 0:00:05]} g5 {[%emt 0:00:40]} 49. Rh3 {[%emt 0:00:47]} Nf4 {[%emt 0:01:46]} 50. Re3 {[%emt 0:00:51]} Bf6 {[%emt 0:00:42]} 51. Kb4 {[%emt 0:01:11]} Be7+ {[%emt 0:02:06]} 52. Ka5 {[%emt 0:03:48]} Rg6 {[%emt 0:01:08]} 53. Re4 {[%emt 0:01:16]} Ne6 {[%emt 0:00:43]} 54. Rg4 {[%emt 0:00:22]} Nc7 {[%emt 0:02:17]} 0-1

[Event "FIDE Womens Grand Prix 2019-20"]
[Site "Skolkovo"]
[Date "2019.09.11"]
[Round "1.5"]
[White "Lagno, Kateryna"]
[Black "Sebag, Marie"]
[Result "1/2-1/2"]
[ECO "B24"]
[WhiteElo "2545"]
[BlackElo "2450"]
[Annotator "ChessBase"]
[PlyCount "67"]
[EventDate "2019.09.11"]
[EventType "tourn"]
[EventCountry "RUS"]
[SourceTitle "playchess.com"]
[Source "ChessBase"]
[SourceQuality "1"]
[TimeControl "40/5400+30:1800+30"]

1. e4 {[%emt 0:00:00]} c5 {[%emt 0:00:00]} 2. Nc3 {[%emt 0:00:00]} Nc6 {[%emt 0:00:49]} 3. Bb5 {[%emt 0:00:43]} Nd4 {[%emt 0:00:59]} 4. Nf3 {[%emt 0:00:25]} a6 {[%emt 0:05:05]} 5. Bc4 {[%emt 0:08:39]} b5 {[%emt 0:11:21]} 6. Bd5 {[%emt 0:01:52]} Rb8 {[%emt 0:02:03]} 7. Nxd4 {[%emt 0:02:51]} cxd4 {[%emt 0:00:06]} 8. Ne2 {[%emt 0:00:05]} Nf6 {[%emt 0:04:08]} 9. Nxd4 {[%emt 0:13:33]} e6 {[%emt 0:43:55]} 10. Bb3 {[%emt 0:00:29]} Nxe4 {[%emt 0:00:11]} 11. c3 {[%emt 0:11:12]} Bb7 {[%emt 0:00:42]} 12. O-O {[%emt 0:01:07]} Be7 {[%emt 0:01:25]} 13. Bc2 {[%emt 0:01:37]} Nf6 {[%emt 0:01:47]} 14. Nf3 {[%emt 0:03:26]} O-O {[%emt 0:00:47]} 15. d4 {[%emt 0:00:28]} Qc7 {[%emt 0:04:59]} 16. Re1 {[%emt 0:02:15]} b4 {[%emt 0:02:55]} 17. Qd3 {[%emt 0:04:16]} bxc3 {[%emt 0:03:06]} 18. bxc3 {[%emt 0:00:12]} Rbc8 {[%emt 0:03:02]} 19. Bd2 {[%emt 0:00:50]} Bd5 {[%emt 0:04:54]} 20. Ne5 {[%emt 0:07:03]} d6 {[%emt 0:00:43]} 21. Ng4 {[%emt 0:00:54]} g6 {[%emt 0:00:09]} 22. Ne3 {[%emt 0:02:15]} Bb7 {[%emt 0:02:24]} 23. Qe2 {[%emt 0:11:33]} Nd5 {[%emt 0:01:55]} 24. Rab1 {[%emt 0:11:13]} Nxe3 {[%emt 0:01:45]} 25. fxe3 {[%emt 0:03:02]} Bd5 {[%emt 0:00:24]} 26. Bb3 {[%emt 0:02:00]} Bc4 {[%emt 0:01:02]} 27. Qf3 {[%emt 0:00:26]} d5 {[%emt 0:01:00]} 28. e4 {[%emt 0:00:25]} dxe4 {[%emt 0:00:29]} 29. Qxe4 {[%emt 0:00:06]} Bf6 {[%emt 0:01:13]} 30. Bh6 {[%emt 0:03:06]} Bg7 {[%emt 0:00:51]} 31. Bxg7 {[%emt 0:00:15]} Kxg7 {[%emt 0:00:03]} 32. Re3 {[%emt 0:00:32]} Rb8 {[%emt 0:00:33]} 33. Rf3 {[%emt 0:03:16]} Rb5 {[%emt 0:00:44]} 34. Bxc4 {[%emt 0:02:42]} 1/2-1/2

[Event "FIDE Womens Grand Prix 2019-20"]
[Site "Skolkovo"]
[Date "2019.09.11"]
[Round "1.6"]
[White "Koneru, Humpy"]
[Black "Harika, Dronavalli"]
[Result "1/2-1/2"]
[ECO "A21"]
[WhiteElo "2560"]
[BlackElo "2503"]
[Annotator "ChessBase"]
[PlyCount "86"]
[EventDate "2019.09.11"]
[EventType "tourn"]
[EventCountry "RUS"]
[SourceTitle "playchess.com"]
[Source "ChessBase"]
[SourceQuality "1"]
[TimeControl "40/5400+30:1800+30"]

1. c4 {[%emt 0:00:00]} e5 {[%emt 0:01:08]} 2. Nc3 {[%emt 0:00:00]} d6 {[%emt 0:02:15]} 3. Nf3 {[%emt 0:03:19]} f5 {[%emt 0:01:21]} 4. d4 {[%emt 0:02:01]} e4 {[%emt 0:00:14]} 5. Ng5 {[%emt 0:03:12]} Be7 {[%emt 0:08:36]} 6. Nh3 {[%emt 0:00:17]} Nf6 {[%emt 0:00:10]} 7. e3 {[%emt 0:02:41]} O-O {[%emt 0:01:25]} 8. Be2 {[%emt 0:04:01]} c6 {[%emt 0:02:54]} 9. b4 {[%emt 0:11:23]} Na6 {[%emt 0:03:33]} 10. Rb1 {[%emt 0:05:56]} Nc7 {[%emt 0:01:25]} 11. O-O {[%emt 0:14:45]} Kh8 {[%emt 0:11:53]} 12. d5 {[%emt 0:04:57]} Bd7 {[%emt 0:03:35]} 13. Bb2 {[%emt 0:04:54]} Be8 {[%emt 0:04:32]} 14. f3 {[%emt 0:06:03]} b5 {[%emt 0:12:18]} 15. fxe4 {[%emt 0:05:27]} bxc4 {[%emt 0:00:32]} 16. exf5 {[%emt 0:11:30]} Nfxd5 {[%emt 0:08:55]} 17. Nxd5 {[%emt 0:00:10]} cxd5 {[%emt 0:00:18]} 18. Nf4 {[%emt 0:05:15]} Bf7 {[%emt 0:02:09]} 19. Bf3 {[%emt 0:01:43]} Rc8 {[%emt 0:06:48]} 20. Rc1 {[%emt 0:04:04]} Bf6 {[%emt 0:04:27]} 21. Bxf6 {[%emt 0:01:51]} Qxf6 {[%emt 0:00:05]} 22. Nxd5 {[%emt 0:00:35]} Nxd5 {[%emt 0:03:00]} 23. Bxd5 {[%emt 0:00:02]} c3 {[%emt 0:01:42]} 24. Rf2 {[%emt 0:02:41]} Qe5 {[%emt 0:01:37]} 25. e4 {[%emt 0:03:07]} h6 {[%emt 0:02:21]} 26. a3 {[%emt 0:00:41]} Rc7 {[%emt 0:04:20]} 27. Qd3 {[%emt 0:00:34]} Bxd5 {[%emt 0:00:15]} 28. exd5 {[%emt 0:01:04]} a5 {[%emt 0:03:38]} 29. b5 {[%emt 0:01:33]} Rc5 {[%emt 0:00:16]} 30. Rd1 {[%emt 0:00:34]} a4 {[%emt 0:01:19]} 31. h3 {[%emt 0:00:02]} Qe8 {[%emt 0:01:23]} 32. Rb1 {[%emt 0:00:21]} Qf7 {[%emt 0:01:04]} 33. Rd1 {[%emt 0:00:41]} Qe8 {[%emt 0:00:33]} 34. b6 {[%emt 0:00:17]} Qb5 {[%emt 0:00:04]} 35. Qxb5 {[%emt 0:00:37]} Rxb5 {[%emt 0:00:11]} 36. Rc1 {[%emt 0:00:40]} Rc8 {[%emt 0:01:33]} 37. Rfc2 {[%emt 0:00:31]} Rxb6 {[%emt 0:00:57]} 38. Rxc3 {[%emt 0:00:13]} Rxc3 {[%emt 0:00:11]} 39. Rxc3 {[%emt 0:00:07]} Rb5 {[%emt 0:01:37]} 40. Rc4 {[%emt 0:00:00]} Rxd5 {[%emt 0:00:00]} 41. Rxa4 {[%emt 0:05:32]} Rxf5 {[%emt 0:04:43]} 42. Rd4 {[%emt 0:00:09]} Ra5 {[%emt 0:00:09]} 43. Rxd6 {[%emt 0:02:28]} Rxa3 {[%emt 0:00:08]} 1/2-1/2

[Event "FIDE Womens Grand Prix 2019-20"]
[Site "Skolkovo"]
[Date "2019.09.13"]
[Round "3.1"]
[White "Stefanova, Antoaneta"]
[Black "Ju, Wenjun"]
[Result "1/2-1/2"]
[ECO "C42"]
[WhiteElo "2491"]
[BlackElo "2576"]
[Annotator "ChessBase"]
[PlyCount "112"]
[EventDate "2019.09.11"]
[EventType "tourn"]
[EventCountry "RUS"]
[SourceTitle "playchess.com"]
[Source "ChessBase"]
[SourceQuality "1"]
[TimeControl "40/5400+30:1800+30"]

1. e4 {[%emt 0:00:00]} e5 {[%emt 0:00:00]} 2. Nf3 {[%emt 0:00:00]} Nf6 {[%emt 0:00:26]} 3. Nxe5 {[%emt 0:00:02]} d6 {[%emt 0:00:03]} 4. Nf3 {[%emt 0:00:18]} Nxe4 {[%emt 0:00:05]} 5. Nc3 {[%emt 0:00:22]} Nxc3 {[%emt 0:00:13]} 6. dxc3 {[%emt 0:00:05]} Be7 {[%emt 0:00:26]} 7. Be3 {[%emt 0:00:40]} Nc6 {[%emt 0:00:29]} 8. Qd2 {[%emt 0:01:13]} Be6 {[%emt 0:00:13]} 9. O-O-O {[%emt 0:00:53]} Qd7 {[%emt 0:00:13]} 10. h3 {[%emt 0:00:57]} a6 {[%emt 0:04:50]} 11. Kb1 {[%emt 0:15:08]} O-O-O {[%emt 0:10:07]} 12. g4 {[%emt 0:06:11]} h5 {[%emt 0:03:40]} 13. g5 {[%emt 0:00:56]} Ne5 {[%emt 0:00:28]} 14. Bg2 {[%emt 0:08:54]} Qc6 {[%emt 0:25:44]} 15. Nxe5 {[%emt 0:20:21]} Qxg2 {[%emt 0:00:09]} 16. Nd3 {[%emt 0:00:22]} Qf3 {[%emt 0:11:02]} 17. h4 {[%emt 0:01:21]} Rhe8 {[%emt 0:02:37]} 18. Nf4 {[%emt 0:07:50]} Bg4 {[%emt 0:00:40]} 19. Nd5 {[%emt 0:02:01]} Qf5 {[%emt 0:06:30]} 20. Rde1 {[%emt 0:10:32]} Bf3 {[%emt 0:04:09]} 21. Nxe7+ {[%emt 0:01:46]} Rxe7 {[%emt 0:00:03]} 22. Bd4 {[%emt 0:01:02]} Re4 {[%emt 0:03:42]} 23. Rxe4 {[%emt 0:01:35]} Bxe4 {[%emt 0:00:40]} 24. Re1 {[%emt 0:00:58]} g6 {[%emt 0:00:42]} 25. Re3 {[%emt 0:11:04]} Re8 {[%emt 0:03:52]} 26. f3 {[%emt 0:05:36]} Bc6 {[%emt 0:00:03]} 27. Rxe8+ {[%emt 0:00:06]} Bxe8 {[%emt 0:00:02]} 28. f4 {[%emt 0:00:23]} Qe4 {[%emt 0:01:29]} 29. Bf2 {[%emt 0:00:17]} Bd7 {[%emt 0:00:05]} 30. b3 {[%emt 0:00:53]} Bf5 {[%emt 0:00:19]} 31. c4 {[%emt 0:00:10]} b5 {[%emt 0:03:51]} 32. cxb5 {[%emt 0:02:04]} axb5 {[%emt 0:00:03]} 33. a3 {[%emt 0:01:09]} Kb7 {[%emt 0:01:45]} 34. Kb2 {[%emt 0:00:09]} c5 {[%emt 0:01:08]} 35. Be1 {[%emt 0:00:38]} Kc6 {[%emt 0:01:09]} 36. Qf2 {[%emt 0:00:46]} d5 {[%emt 0:02:37]} 37. b4 {[%emt 0:00:33]} d4 {[%emt 0:00:44]} 38. bxc5 {[%emt 0:00:21]} d3 {[%emt 0:06:48]} 39. cxd3 {[%emt 0:00:20]} Qxd3 {[%emt 0:00:03]} 40. Qd2 {[%emt 0:00:00]} Qb1+ {[%emt 0:00:00]} 41. Kc3 {[%emt 0:01:52]} Kxc5 {[%emt 0:06:55]} 42. Bf2+ {[%emt 0:22:55]} Kc6 {[%emt 0:00:04]} 43. Kd4 {[%emt 0:02:32]} Qe4+ {[%emt 0:13:55]} 44. Kc3 {[%emt 0:00:02]} Qc4+ {[%emt 0:00:11]} 45. Kb2 {[%emt 0:00:01]} Kb7 {[%emt 0:00:05]} 46. Be3 {[%emt 0:02:27]} Qe4 {[%emt 0:01:42]} 47. Kc3 {[%emt 0:01:29]} Kc6 {[%emt 0:00:43]} 48. Bf2 {[%emt 0:00:31]} Kb7 {[%emt 0:04:31]} 49. Be3 {[%emt 0:00:05]} Qc6+ {[%emt 0:03:22]} 50. Kb2 {[%emt 0:00:27]} Qc4 {[%emt 0:01:02]} 51. Qc3 {[%emt 0:01:53]} Qe4 {[%emt 0:00:58]} 52. Qc5 {[%emt 0:00:43]} Qb1+ {[%emt 0:00:04]} 53. Kc3 {[%emt 0:00:06]} Qc2+ {[%emt 0:00:33]} 54. Kb4 {[%emt 0:00:52]} Qa4+ {[%emt 0:00:42]} 55. Kc3 {[%emt 0:00:01]} Qc2+ {[%emt 0:00:11]} 56. Kb4 {[%emt 0:00:01]} Qa4+ {[%emt 0:00:06]} 1/2-1/2

[Event "FIDE Womens Grand Prix 2019-20"]
[Site "Skolkovo"]
[Date "2019.09.13"]
[Round "3.2"]
[White "Paehtz, Elisabeth"]
[Black "Cramling, Pia"]
[Result "1/2-1/2"]
[ECO "B30"]
[WhiteElo "2479"]
[BlackElo "2487"]
[Annotator "ChessBase"]
[PlyCount "81"]
[EventDate "2019.09.11"]
[EventType "tourn"]
[EventCountry "RUS"]
[SourceTitle "playchess.com"]
[Source "ChessBase"]
[SourceQuality "1"]
[TimeControl "40/5400+30:1800+30"]

1. e4 {[%emt 0:00:00]} c5 {[%emt 0:00:00]} 2. Nf3 {[%emt 0:00:00]} Nc6 {[%emt 0:00:00]} 3. Bb5 {[%emt 0:00:00]} e6 {[%emt 0:00:00]} 4. O-O {[%emt 0:00:44]} Nge7 {[%emt 0:00:10]} 5. d4 {[%emt 0:00:05]} cxd4 {[%emt 0:00:51]} 6. Nxd4 {[%emt 0:00:05]} Qb6 {[%emt 0:00:26]} 7. Nxc6 {[%emt 0:00:05]} bxc6 {[%emt 0:00:30]} 8. Bd3 {[%emt 0:00:52]} Ng6 {[%emt 0:01:55]} 9. Qh5 {[%emt 0:11:04]} Bd6 {[%emt 0:26:38]} 10. Nc3 {[%emt 0:10:13]} Ba6 {[%emt 0:14:14]} 11. Na4 {[%emt 0:12:51]} Qb7 {[%emt 0:07:21]} 12. Nc5 {[%emt 0:02:35]} Bxc5 {[%emt 0:00:06]} 13. Qxc5 {[%emt 0:00:09]} Bxd3 {[%emt 0:01:05]} 14. cxd3 {[%emt 0:00:04]} Qb6 {[%emt 0:04:32]} 15. Qc3 {[%emt 0:05:54]} O-O {[%emt 0:05:08]} 16. Be3 {[%emt 0:00:10]} Qc7 {[%emt 0:00:14]} 17. Rac1 {[%emt 0:06:12]} Rfc8 {[%emt 0:05:12]} 18. b3 {[%emt 0:07:49]} d6 {[%emt 0:01:04]} 19. Rc2 {[%emt 0:01:12]} Qd7 {[%emt 0:02:10]} 20. Rfc1 {[%emt 0:01:54]} Ne7 {[%emt 0:01:29]} 21. g3 {[%emt 0:01:54]} a5 {[%emt 0:02:20]} 22. Qd2 {[%emt 0:04:03]} Qb7 {[%emt 0:01:39]} 23. Rc4 {[%emt 0:02:05]} c5 {[%emt 0:02:00]} 24. d4 {[%emt 0:03:13]} cxd4 {[%emt 0:09:36]} 25. Rxc8+ {[%emt 0:06:43]} Rxc8 {[%emt 0:08:20]} 26. Rxc8+ {[%emt 0:11:01]} Qxc8 {[%emt 0:00:25]} 27. Bxd4 {[%emt 0:00:16]} Qc7 {[%emt 0:03:15]} 28. Bb2 {[%emt 0:04:11]} f6 {[%emt 0:00:56]} 29. Ba3 {[%emt 0:00:49]} Nc8 {[%emt 0:00:10]} 30. Qe2 {[%emt 0:01:36]} Qc6 {[%emt 0:00:40]} 31. Qg4 {[%emt 0:01:31]} d5 {[%emt 0:00:53]} 32. exd5 {[%emt 0:00:11]} Qxd5 {[%emt 0:00:11]} 33. Qe2 {[%emt 0:03:56]} Kf7 {[%emt 0:00:48]} 34. h4 {[%emt 0:00:04]} Ne7 {[%emt 0:00:48]} 35. Bxe7 {[%emt 0:00:36]} Kxe7 {[%emt 0:00:01]} 36. Qc2 {[%emt 0:00:10]} h5 {[%emt 0:00:27]} 37. Qc7+ {[%emt 0:00:58]} Kf8 {[%emt 0:00:01]} 38. Qf4 {[%emt 0:00:58]} Kf7 {[%emt 0:00:39]} 39. Qe3 {[%emt 0:00:45]} e5 {[%emt 0:01:46]} 40. a3 {[%emt 0:00:00]} Kg6 {[%emt 0:00:00]} 41. Kh2 {[%emt 0:02:20]} 1/2-1/2

[Event "FIDE Womens Grand Prix 2019-20"]
[Site "Skolkovo"]
[Date "2019.09.13"]
[Round "3.3"]
[White "Gunina, Valentina"]
[Black "Goryachkina, Aleksandra"]
[Result "1/2-1/2"]
[ECO "D35"]
[WhiteElo "2502"]
[BlackElo "2564"]
[Annotator "ChessBase"]
[PlyCount "80"]
[EventDate "2019.09.11"]
[EventType "tourn"]
[EventCountry "RUS"]
[SourceTitle "playchess.com"]
[Source "ChessBase"]
[SourceQuality "1"]
[TimeControl "40/5400+30:1800+30"]

1. d4 {[%emt 0:00:00]} Nf6 {[%emt 0:00:00]} 2. c4 {[%emt 0:00:09]} e6 {[%emt 0:00:00]} 3. Nc3 {[%emt 0:01:10]} d5 {[%emt 0:03:00]} 4. cxd5 {[%emt 0:00:31]} exd5 {[%emt 0:00:12]} 5. Bg5 {[%emt 0:00:09]} c6 {[%emt 0:01:16]} 6. e3 {[%emt 0:01:13]} Be7 {[%emt 0:01:55]} 7. Bd3 {[%emt 0:00:39]} Nbd7 {[%emt 0:01:36]} 8. Qc2 {[%emt 0:01:02]} Nh5 {[%emt 0:05:21]} 9. Bxe7 {[%emt 0:02:45]} Qxe7 {[%emt 0:00:05]} 10. O-O-O {[%emt 0:03:49]} Nb6 {[%emt 0:01:30]} 11. Kb1 {[%emt 0:13:30]} g6 {[%emt 0:04:33]} 12. Nge2 {[%emt 0:03:43]} Ng7 {[%emt 0:02:52]} 13. Rhe1 {[%emt 0:11:29]} Bf5 {[%emt 0:07:39]} 14. f3 {[%emt 0:03:18]} Bxd3 {[%emt 0:01:59]} 15. Qxd3 {[%emt 0:00:05]} O-O-O {[%emt 0:02:16]} 16. e4 {[%emt 0:00:39]} Ne6 {[%emt 0:04:57]} 17. exd5 {[%emt 0:08:45]} Nxd5 {[%emt 0:09:26]} 18. Nxd5 {[%emt 0:00:57]} Rxd5 {[%emt 0:03:24]} 19. Nc3 {[%emt 0:01:08]} Rdd8 {[%emt 0:05:16]} 20. d5 {[%emt 0:01:48]} cxd5 {[%emt 0:01:50]} 21. Nxd5 {[%emt 0:08:56]} Qd6 {[%emt 0:02:15]} 22. Qc3+ {[%emt 0:10:56]} Kb8 {[%emt 0:00:59]} 23. Qf6 {[%emt 0:00:07]} Nc7 {[%emt 0:05:00]} 24. Qxd6 {[%emt 0:05:43]} Rxd6 {[%emt 0:00:01]} 25. Nc3 {[%emt 0:00:10]} Re8 {[%emt 0:11:09]} 26. Ne4 {[%emt 0:03:02]} Rde6 {[%emt 0:00:33]} 27. Rg1 {[%emt 0:05:33]} f5 {[%emt 0:05:06]} 28. Nd6 {[%emt 0:01:13]} Rf8 {[%emt 0:00:24]} 29. a4 {[%emt 0:03:56]} Ne8 {[%emt 0:04:25]} 30. Nc4 {[%emt 0:02:32]} Nf6 {[%emt 0:00:52]} 31. Rd4 {[%emt 0:00:44]} Re2 {[%emt 0:02:53]} 32. Nd6 {[%emt 0:01:18]} Ne8 {[%emt 0:04:12]} 33. Nc4 {[%emt 0:02:13]} Nf6 {[%emt 0:00:32]} 34. h4 {[%emt 0:01:29]} Rc8 {[%emt 0:01:50]} 35. g3 {[%emt 0:01:51]} Nd5 {[%emt 0:04:01]} 36. Rgd1 {[%emt 0:00:53]} Ne3 {[%emt 0:01:47]} 37. Nxe3 {[%emt 0:00:04]} Rxe3 {[%emt 0:00:04]} 38. R1d3 {[%emt 0:00:13]} Rxd3 {[%emt 0:00:15]} 39. Rxd3 {[%emt 0:00:01]} Re8 {[%emt 0:00:16]} 40. Ka2 {[%emt 0:00:00]} Kc7 {[%emt 0:00:00]} 1/2-1/2

[Event "FIDE Womens Grand Prix 2019-20"]
[Site "Skolkovo"]
[Date "2019.09.13"]
[Round "3.5"]
[White "Koneru, Humpy"]
[Black "Kashlinskaya, Alina"]
[Result "1-0"]
[ECO "D38"]
[WhiteElo "2560"]
[BlackElo "2487"]
[Annotator "ChessBase"]
[PlyCount "39"]
[EventDate "2019.09.11"]
[EventType "tourn"]
[EventCountry "RUS"]
[SourceTitle "playchess.com"]
[Source "ChessBase"]
[SourceQuality "1"]
[TimeControl "40/5400+30:1800+30"]

1. d4 {[%emt 0:00:00]} Nf6 {[%emt 0:00:00]} 2. c4 {[%emt 0:00:00]} e6 {[%emt 0:00:00]} 3. Nf3 {[%emt 0:00:00]} d5 {[%emt 0:00:00]} 4. Nc3 {[%emt 0:00:20]} Bb4 {[%emt 0:00:00]} 5. Bg5 {[%emt 0:00:31]} h6 {[%emt 0:00:10]} 6. Bxf6 {[%emt 0:00:26]} Qxf6 {[%emt 0:00:06]} 7. e3 {[%emt 0:00:12]} O-O {[%emt 0:00:16]} 8. Rc1 {[%emt 0:00:36]} dxc4 {[%emt 0:00:25]} 9. Bxc4 {[%emt 0:00:29]} c5 {[%emt 0:00:12]} 10. O-O {[%emt 0:01:02]} cxd4 {[%emt 0:00:30]} 11. Ne4 {[%emt 0:00:46]} Qe7 {[%emt 0:00:14]} 12. exd4 {[%emt 0:00:50]} Rd8 {[%emt 0:11:46]} 13. Qc2 {[%emt 0:02:41]} Bd7 {[%emt 0:02:52]} 14. a3 {[%emt 0:02:57]} Ba5 {[%emt 0:02:25]} 15. b4 {[%emt 0:01:44]} Bb6 {[%emt 0:00:14]} 16. Rfe1 {[%emt 0:00:47]} Bc6 {[%emt 0:09:24]} 17. Rcd1 {[%emt 0:02:13]} Qc7 {[%emt 0:05:04]} 18. Neg5 {[%emt 0:27:32]} Bxf3 {[%emt 0:39:03]} 19. Qh7+ {[%emt 0:03:51]} Kf8 {[%emt 0:00:02]} 20. Rxe6 {[%emt 0:00:23]} 1-0